bitfinex-derivatives/quotes_BTCF0:USTF0_20210707
["timestamp","ask_amount","ask_price","bid_price","bid_amount"]
[1625689500678,3.4982,34575.0,34574.0,2.6646644]
[1625689501217,3.4982,34575.0,34574.0,2.4200444]
[1625689502630,3.4982,34575.0,34574.0,1.24648419]
[1625689502939,5.70278797,34575.0,34574.0,0.24057544]
[1625689503080,4.51571518,34575.0,34574.0,0.24057544]
[1625689503679,4.52926711,34575.0,34574.0,0.24057544]
[1625689504280,4.51571518,34575.0,34574.0,3.86467544]
[1625689505559,4.52926717,34575.0,34574.0,3.86467544]
[1625689506231,8.62906717,34575.0,34574.0,3.86467544]
[1625689507283,8.62806717,34575.0,34574.0,3.86467544]
[1625689507441,12.36616717,34575.0,34574.0,3.86467544]
[1625689509384,12.36616717,34575.0,34574.0,3.6241]
[1625689509985,12.84731805,34575.0,34574.0,3.86467544]
[1625689511639,16.42131805,34575.0,34574.0,3.86467544]
[1625689511788,12.84731805,34575.0,34574.0,3.86467544]
[1625689513369,12.84731805,34575.0,34574.0,3.86942451]
[1625689513743,16.93581805,34575.0,34574.0,3.86942451]
[1625689513898,12.84731805,34575.0,34574.0,3.86942451]
[1625689518250,14.03500297,34575.0,34574.0,3.86942451]
[1625689520272,14.03500297,34575.0,34574.0,0.24532451]
[1625689520573,14.03500297,34575.0,34574.0,0.00474907]
[1625689520723,14.03500297,34575.0,34572.0,1.00578906]
[1625689520873,13.81200297,34575.0,34572.0,1.00578906]
[1625689521024,2.2064856,34573.0,34570.0,1.00761056]
[1625689521173,2.4570156,34573.0,34570.0,1.00761056]
[1625689521331,2.20653443,34571.0,34570.0,0.001]
[1625689521785,2.2200851,34571.0,34570.0,0.001]
[1625689521928,3.57809906,34571.0,34570.0,0.001]
[1625689522087,3.8186745,34571.0,34570.0,0.001]
[1625689523955,5.34653403,34571.0,34570.0,0.001]
[1625689524112,5.58710947,34571.0,34570.0,0.001]
[1625689525228,5.36410947,34571.0,34570.0,0.001]
[1625689525384,5.36410947,34571.0,34565.0,0.002]
[1625689525385,5.36410947,34571.0,34566.0,0.001]
[1625689525832,0.01354763,34570.0,34566.0,0.001]
[1625689525984,1.01862374,34567.0,34566.0,0.001]
[1625689526133,1.25919918,34567.0,34566.0,0.001]
[1625689526281,6.44434676,34567.0,34566.0,0.001]
[1625689526882,6.22134676,34567.0,34566.0,0.001]
[1625689528089,9.89504676,34567.0,34566.0,0.001]
[1625689528383,9.67204676,34567.0,34566.0,0.001]
[1625689528989,13.94484676,34567.0,34566.0,0.001]
[1625689529817,13.72184676,34567.0,34566.0,0.001]
[1625689530787,15.08004696,34567.0,34566.0,0.001]
[1625689532597,14.85704696,34567.0,34566.0,0.001]
[1625689534316,14.63404696,34567.0,34566.0,0.001]
[1625689537242,14.63404696,34567.0,34562.0,0.001]
[1625689537543,0.01354869,34566.0,34562.0,0.001]
[1625689537694,1.42305968,34566.0,34562.0,0.001]
[1625689538149,0.24057544,34563.0,34562.0,0.001]
[1625689538446,0.24057544,34563.0,34562.0,4.7817]
[1625689539420,4.12077544,34563.0,34562.0,0.001]
[1625689539871,4.12077544,34563.0,34554.0,1.7544395]
[1625689540022,3.682,34558.0,34554.0,0.24057544]
[1625689540171,0.07203014,34555.0,34554.0,0.24057544]
[1625689542507,3.79206014,34558.0,34554.0,0.24057544]
[1625689543256,3.79206014,34558.0,34557.0,0.002]
[1625689544006,4.4700086,34558.0,34557.0,0.002]
[1625689546337,4.4700086,34558.0,34554.0,0.48115088]
[1625689546640,0.67771484,34556.0,34554.0,0.48115088]
[1625689548132,0.24057544,34555.0,34554.0,0.48115088]
[1625689548433,0.01757544,34555.0,34554.0,0.48115088]
[1625689550159,0.67735646,34557.0,34554.0,0.48115088]
[1625689550911,0.45435646,34557.0,34554.0,0.48115088]
[1625689551966,3.79206014,34558.0,34554.0,0.48115088]
[1625689552113,0.01352,34556.0,34554.0,0.48115088]
[1625689552411,0.01351998,34557.0,34554.0,0.48115088]
[1625689554215,3.58258012,34558.0,34554.0,0.48115088]
[1625689554965,3.32155012,34558.0,34554.0,0.48115088]
[1625689556240,3.5568,34555.0,34554.0,0.48115088]
[1625689556541,3.3338,34555.0,34554.0,0.48115088]
[1625689558116,3.1108,34555.0,34554.0,0.48115088]
[1625689560520,3.1108,34555.0,34554.0,0.4859343]
[1625689560671,2.8878,34555.0,34554.0,0.4859343]
[1625689562779,2.6648,34555.0,34554.0,1.66155894]
[1625689564055,2.6648,34555.0,34554.0,6.39155894]
[1625689564355,2.6648,34555.0,34554.0,7.39939305]
[1625689565106,2.4418,34555.0,34554.0,6.22376841]
[1625689566837,2.4418,34555.0,34554.0,7.40006193]
[1625689567733,2.2188,34555.0,34554.0,7.40006193]
[1625689568482,2.2188,34555.0,34554.0,8.74432117]
[1625689568934,0.001,34557.0,34554.0,8.74432117]
[1625689569084,0.001,34557.0,34554.0,8.98460117]
[1625689569235,0.001,34557.0,34556.0,2.18385854]
[1625689569462,0.001,34557.0,34556.0,3.52752119]
[1625689569760,3.253,34562.0,34556.0,2.18865446]
[1625689569910,3.253,34562.0,34559.0,1.00790895]
[1625689570142,4.7438,34560.0,34559.0,1.00790895]
[1625689570286,4.7438,34560.0,34559.0,1.24848439]
[1625689570736,4.75724792,34560.0,34559.0,1.25328035]
[1625689570887,9.50074792,34560.0,34559.0,1.25328035]
[1625689572088,9.50074792,34560.0,34559.0,0.2453714]
[1625689572238,9.50074792,34560.0,34559.0,1.25382767]
[1625689572541,9.50074792,34560.0,34559.0,5.65592767]
[1625689572689,9.27774792,34560.0,34559.0,5.65592767]
[1625689573451,9.2643,34560.0,34559.0,5.65592767]
[1625689574043,9.27774872,34560.0,34559.0,5.65592767]
[1625689574192,9.27774872,34560.0,34559.0,6.16037177]
[1625689574353,9.78670606,34560.0,34559.0,6.16037177]
[1625689574493,9.77325734,34560.0,34559.0,6.16037177]
[1625689574794,9.78670603,34560.0,34559.0,6.16037177]
[1625689575094,9.78670603,34560.0,34559.0,7.33781938]
[1625689575245,9.77325734,34560.0,34559.0,7.33781938]
[1625689575995,9.77325734,34560.0,34559.0,6.16037177]
[1625689576296,9.77325734,34560.0,34559.0,7.3381188]
[1625689576897,9.55025734,34560.0,34559.0,7.3381188]
[1625689577197,9.0413,34560.0,34559.0,7.3381188]
[1625689577646,9.55078354,34560.0,34559.0,8.68499215]
[1625689578550,9.32778354,34560.0,34559.0,8.68499215]
[1625689579901,9.10478354,34560.0,34559.0,8.68499215]
[1625689581252,10.1244887,34560.0,34559.0,8.68499215]
[1625689581554,10.1379374,34560.0,34559.0,8.68499215]
[1625689582305,9.9149374,34560.0,34559.0,8.68499215]
[1625689585159,9.6919374,34560.0,34559.0,8.68019619]
[1625689585308,9.6919374,34560.0,34559.0,8.68499098]
[1625689586738,9.4689374,34560.0,34559.0,8.68499098]
[1625689588390,9.2459374,34560.0,34559.0,8.68499098]
[1625689591928,9.0229374,34560.0,34559.0,8.68499098]
[1625689593421,8.7999374,34560.0,34559.0,8.68499098]
[1625689595224,1.5426374,34560.0,34559.0,8.68499098]
[1625689595375,1.3196374,34560.0,34559.0,8.68499098]
[1625689596880,1.0966374,34560.0,34559.0,8.68499098]
[1625689601082,0.8736374,34560.0,34559.0,8.68499098]
[1625689604011,0.6506374,34560.0,34559.0,8.68499098]
[1625689606866,0.4276374,34560.0,34559.0,8.68499098]
[1625689607398,0.4276374,34560.0,34559.0,13.24249098]
[1625689608367,0.2046374,34560.0,34559.0,13.24249098]
[1625689610998,0.88537219,34560.0,34559.0,13.91660444]
[1625689611447,2.07677134,34560.0,34559.0,13.91660444]
[1625689611978,1.85377134,34560.0,34559.0,13.91660444]
[1625689612201,0.66237219,34560.0,34559.0,13.91660444]
[1625689612875,0.66237219,34560.0,34559.0,13.91180965]
[1625689613249,0.67579444,34560.0,34559.0,13.91661933]
[1625689613403,1.86749661,34560.0,34559.0,13.91661933]
[1625689613550,1.64449661,34560.0,34559.0,13.91661933]
[1625689615129,1.42149661,34560.0,34559.0,13.91661933]
[1625689617981,1.19849661,34560.0,34559.0,13.91661933]
[1625689619482,0.97549661,34560.0,34559.0,13.91661933]
[1625689621285,2.33821454,34560.0,34559.0,13.91661933]
[1625689621739,2.11521454,34560.0,34559.0,13.91661933]
[1625689623613,0.75249661,34560.0,34559.0,13.91661933]
[1625689623913,2.11544225,34560.0,34559.0,13.91661933]
[1625689626014,1.89244225,34560.0,34559.0,13.91661933]
[1625689627450,1.66944225,34560.0,34559.0,13.91661933]
[1625689628343,0.30649661,34560.0,34559.0,15.43577656]
[1625689629018,0.08349661,34560.0,34559.0,15.43577656]
[1625689629993,1.44686116,34560.0,34559.0,13.91661933]
[1625689630672,1.22386116,34560.0,34559.0,13.91661933]
[1625689630975,1.22386116,34560.0,34559.0,13.67604389]
[1625689631421,1.22386116,34560.0,34559.0,14.15719477]
[1625689632243,1.00086116,34560.0,34559.0,14.15719477]
[1625689634077,1.08806116,34560.0,34559.0,14.15719477]
[1625689634198,1.00086116,34560.0,34559.0,14.15719477]
[1625689635399,0.77786116,34560.0,34559.0,14.15719477]
[1625689636901,0.55486116,34560.0,34559.0,14.15719477]
[1625689637878,0.001,34562.0,34559.0,14.15719477]
[1625689638040,0.001,34562.0,34559.0,10.96579156]
[1625689638331,0.01340261,34561.0,34560.0,0.00481937]
[1625689638484,0.24057544,34563.0,34560.0,0.00481937]
[1625689638933,0.01336618,34562.0,34560.0,0.00481937]
[1625689639233,0.01436618,34562.0,34560.0,0.00481937]
[1625689639683,0.0133662,34561.0,34560.0,0.00481937]
[1625689642011,1.71485295,34563.0,34560.0,0.00481937]
[1625689642313,1.71485295,34563.0,34562.0,1.0137668]
[1625689642461,1.20373182,34563.0,34562.0,1.0137668]
[1625689642613,1.21706169,34563.0,34562.0,1.01861964]
[1625689642762,1.21706169,34563.0,34562.0,1.32669964]
[1625689643064,1.03570765,34563.0,34562.0,1.32669964]
[1625689643438,1.03570765,34563.0,34562.0,5.22709964]
[1625689643591,0.81270765,34563.0,34562.0,5.22709964]
[1625689644264,0.81270765,34563.0,34562.0,9.38279964]
[1625689645765,0.58970765,34563.0,34562.0,9.38279964]
[1625689647353,0.36670765,34563.0,34562.0,9.38279964]
[1625689648245,0.36670765,34563.0,34562.0,10.89996658]
[1625689648544,0.001,34565.0,34562.0,10.89996658]
[1625689648697,0.001,34565.0,34564.0,1.51578179]
[1625689649143,0.001,34565.0,34564.0,1.52062627]
[1625689649444,0.001,34565.0,34564.0,2.00177715]
[1625689649895,0.001,34565.0,34564.0,3.68364999]
[1625689650197,0.744,34568.0,34564.0,3.68364999]
[1625689650496,0.744,34568.0,34567.0,1.51279175]
[1625689650946,0.744,34568.0,34567.0,1.51763565]
[1625689651095,0.744,34568.0,34567.0,2.69363461]
[1625689651551,0.744,34568.0,34567.0,3.17478549]
[1625689651996,0.521,34568.0,34567.0,4.51928226]
[1625689652146,0.002,34570.0,34567.0,4.51928226]
[1625689652447,0.002,34570.0,34569.0,2.52111973]
[1625689653574,0.002,34570.0,34569.0,2.76169517]
[1625689654475,1.19238512,34570.0,34569.0,2.76169517]
[1625689654624,6.03949592,34571.0,34569.0,2.76169517]
[1625689654777,5.81849592,34571.0,34569.0,2.76169517]
[1625689654924,1.1902328,34570.0,34569.0,1.41709798]
[1625689656802,4.7247328,34570.0,34569.0,1.41709798]
[1625689656951,4.5017328,34570.0,34569.0,1.41709798]
[1625689657482,8.7405328,34570.0,34569.0,1.41709798]
[1625689658604,8.7405328,34570.0,34569.0,0.24057544]
[1625689660939,8.5175328,34570.0,34569.0,0.24057544]
[1625689662584,9.87695612,34570.0,34569.0,0.24057544]
[1625689662810,9.87695612,34570.0,34568.0,4.3615]
[1625689663111,9.13272332,34570.0,34568.0,4.3615]
[1625689663260,3.19221987,34569.0,34568.0,4.3615]
[1625689663639,3.19221987,34569.0,34568.0,5.32380176]
[1625689665513,2.96921987,34569.0,34568.0,5.32380176]
[1625689669499,2.74621987,34569.0,34568.0,5.32380176]
[1625689670102,2.75953347,34569.0,34568.0,5.32380176]
[1625689671074,2.53653347,34569.0,34568.0,5.32380176]
[1625689672653,2.31353347,34569.0,34568.0,5.32380176]
[1625689673636,5.95643347,34569.0,34568.0,9.01860176]
[1625689674157,9.37633347,34569.0,34568.0,12.71340176]
[1625689675283,9.69519347,34569.0,34568.0,12.71340176]
[1625689676341,9.69519347,34569.0,34568.0,12.71826417]
[1625689676785,9.37633347,34569.0,34568.0,12.71826417]
[1625689677541,10.39567852,34569.0,34568.0,13.73146164]
[1625689677843,10.17267852,34569.0,34568.0,13.73146164]
[1625689678136,10.85229532,34569.0,34568.0,14.40681798]
[1625689679261,10.62929532,34569.0,34568.0,14.40681798]
[1625689680991,10.62929532,34569.0,34568.0,15.58865477]
[1625689681439,11.81851733,34569.0,34568.0,15.58865477]
[1625689681900,11.59551733,34569.0,34568.0,15.58865477]
[1625689684153,11.37251733,34569.0,34568.0,15.58865477]
[1625689685722,11.14951733,34569.0,34568.0,15.58865477]
[1625689687297,10.92651733,34569.0,34568.0,15.58865477]
[1625689690007,10.70351733,34569.0,34568.0,15.58865477]
[1625689691197,11.21347722,34569.0,34568.0,16.09570397]
[1625689691574,10.99047722,34569.0,34568.0,20.28070397]
[1625689691724,10.99047722,34569.0,34568.0,16.09570397]
[1625689693156,10.76747722,34569.0,34568.0,16.09570397]
[1625689694129,12.12741834,34569.0,34568.0,14.91386718]
[1625689695630,10.76747722,34569.0,34568.0,16.09886113]
[1625689696757,12.12789367,34569.0,34568.0,16.09886113]
[1625689696906,11.90489367,34569.0,34568.0,16.09886113]
[1625689697282,10.54447722,34569.0,34568.0,16.09886113]
[1625689697507,11.90492075,34569.0,34568.0,16.09886113]
[1625689698414,11.68192075,34569.0,34568.0,19.91496113]
[1625689698561,11.68192075,34569.0,34568.0,16.09886113]
[1625689699610,11.68192075,34569.0,34568.0,20.28016113]
[1625689699763,11.68192075,34569.0,34568.0,16.09886113]
[1625689699910,11.45892075,34569.0,34568.0,16.09886113]
[1625689701486,11.23592075,34569.0,34568.0,16.09886113]
[1625689701787,11.23592075,34569.0,34568.0,17.45524289]
[1625689703295,4.75858728,34569.0,34568.0,17.45524289]
[1625689703899,4.75858728,34569.0,34568.0,17.75107289]
[1625689704495,4.53558728,34569.0,34568.0,17.75107289]
[1625689705996,4.31258728,34569.0,34568.0,17.75107289]
[1625689707643,4.08958728,34569.0,34568.0,17.75107289]
[1625689709072,3.86658728,34569.0,34568.0,17.75107289]
[1625689712379,2.50614375,34569.0,34568.0,19.27832183]
[1625689714706,2.28314375,34569.0,34568.0,19.27832183]
[1625689716582,1.09392174,34569.0,34568.0,19.27832183]
[1625689717035,0.87092174,34569.0,34568.0,19.27832183]
[1625689717258,0.36096185,34569.0,34568.0,19.27832183]
[1625689719289,0.13796185,34569.0,34568.0,19.27832183]
[1625689722890,1.10705344,34571.0,34568.0,19.27832183]
[1625689723042,1.10705344,34571.0,34570.0,3.5571]
[1625689723189,1.10705344,34571.0,34570.0,6.95188679]
[1625689723342,1.12034413,34571.0,34570.0,6.95675592]
[1625689724316,1.12034413,34571.0,34570.0,5.42910187]
[1625689724619,0.89734413,34571.0,34570.0,5.42910187]
[1625689725664,0.89734413,34571.0,34570.0,6.95637744]
[1625689725814,0.89734413,34571.0,34570.0,5.42910187]
[1625689726117,0.67434413,34571.0,34570.0,5.42910187]
[1625689728971,0.45134413,34571.0,34570.0,5.42910187]
[1625689729496,0.01329069,34571.0,34570.0,6.95555063]
[1625689730023,0.01329053,34573.0,34570.0,6.95555063]
[1625689730186,0.0132905,34571.0,34570.0,6.95555063]
[1625689730476,14.27145515,34574.0,34570.0,6.95555063]
[1625689730628,14.27145515,34574.0,34570.0,10.67825063]
[1625689730776,0.01329051,34571.0,34570.0,8.81111789]
[1625689731000,0.01325454,34573.0,34570.0,8.80624876]
[1625689731152,0.01325454,34573.0,34570.0,10.67156716]
[1625689731300,0.01325454,34573.0,34572.0,1.86540493]
[1625689731752,0.01325454,34573.0,34572.0,1.87028369]
[1625689732050,14.06170969,34574.0,34572.0,1.87028369]
[1625689732200,14.06170969,34574.0,34573.0,1.86552909]
[1625689732501,14.06170969,34574.0,34573.0,2.58725541]
[1625689732652,14.07494128,34574.0,34573.0,2.59215089]
[1625689733103,1.37583375,34574.0,34573.0,2.59215089]
[1625689733403,0.01423159,34574.0,34573.0,2.59215089]
[1625689733554,0.01423159,34574.0,34573.0,7.01825089]
[1625689733704,0.001,34574.0,34573.0,8.54180949]
[1625689734911,5.08564545,34581.0,34573.0,12.58320949]
[1625689735061,1.36060854,34580.0,34578.0,1.35350383]
[1625689735207,1.36060854,34580.0,34578.0,1.67079383]
[1625689735356,1.36060854,34580.0,34579.0,0.50761397]
[1625689735957,1.37383892,34580.0,34579.0,0.50761397]
[1625689736256,0.01323038,34580.0,34574.0,1.52300999]
[1625689736483,0.22381038,34580.0,34579.0,0.5084369]
[1625689736632,1.99536007,34580.0,34579.0,0.41005441]
[1625689736783,3.35624497,34580.0,34579.0,0.24057544]
[1625689737158,7.64603254,34580.0,34579.0,0.24057544]
[1625689737758,9.34717696,34580.0,34579.0,0.24057544]
[1625689744813,10.36795564,34580.0,34579.0,0.24057544]
[1625689745111,10.86795564,34580.0,34574.0,0.50906003]
[1625689745268,11.86795564,34580.0,34574.0,0.50906003]
[1625689745412,0.03408976,34579.0,34574.0,0.50906003]
[1625689745568,3.91295449,34575.0,34573.0,0.7500787]
[1625689745712,3.91295449,34575.0,34573.0,0.24057544]
[1625689745713,1.53115437,34574.0,34573.0,0.24057544]
[1625689745865,3.91302566,34574.0,34573.0,0.24057544]
[1625689746764,4.1536011,34574.0,34573.0,0.24057544]
[1625689747213,4.1536011,34574.0,34570.0,0.51093502]
[1625689747363,0.24057544,34574.0,34571.0,0.002]
[1625689747512,0.01325425,34573.0,34571.0,0.002]
[1625689747664,3.91273696,34572.0,34571.0,0.002]
[1625689748040,3.92599124,34572.0,34571.0,0.002]
[1625689748791,4.16656668,34572.0,34571.0,0.002]
[1625689748947,5.35740515,34572.0,34571.0,0.002]
[1625689751423,2.46541916,34572.0,34571.0,0.002]
[1625689751567,5.3562472,34572.0,34571.0,0.002]
[1625689756375,5.3562472,34572.0,34568.0,0.51086506]
[1625689756674,5.09925584,34569.0,34568.0,0.51086506]
[1625689756825,9.92595584,34569.0,34568.0,0.51086506]
[1625689756976,10.16653128,34569.0,34568.0,0.51086506]
[1625689757126,8.65002732,34569.0,34568.0,0.51086506]
[1625689757425,8.40945188,34569.0,34568.0,0.51086506]
[1625689758326,9.93892453,34569.0,34568.0,0.001]
[1625689758627,8.40945188,34569.0,34568.0,0.001]
[1625689758928,8.89060276,34569.0,34568.0,0.001]
[1625689759834,10.41993294,34569.0,34568.0,0.001]
[1625689761256,10.19693294,34569.0,34568.0,0.001]
[1625689762306,6.28792737,34569.0,34568.0,0.001]
[1625689762605,8.66626052,34569.0,34568.0,0.001]
[1625689765236,8.66626052,34569.0,34567.0,0.7500751]
[1625689765535,8.66626052,34569.0,34567.0,0.24057544]
[1625689765536,2.39123672,34568.0,34567.0,0.24057544]
[1625689768915,2.42532828,34568.0,34567.0,0.24057544]
[1625689769514,2.39123672,34568.0,34567.0,0.24057544]
[1625689773651,2.42532879,34568.0,34567.0,0.24057544]
[1625689781388,3.61342222,34568.0,34567.0,0.24057544]
[1625689783115,4.2927225,34568.0,34567.0,0.24057544]
[1625689784474,4.2927225,34568.0,34565.0,0.50925092]
[1625689784617,4.24563613,34566.0,34565.0,0.50925092]
[1625689784768,9.15544613,34566.0,34565.0,0.50925092]
[1625689784923,9.16866859,34566.0,34565.0,0.51415389]
[1625689785443,9.40924403,34566.0,34565.0,0.75472933]
[1625689787024,9.40924403,34566.0,34565.0,0.74982636]
[1625689787323,9.40924403,34566.0,34565.0,0.75472942]
[1625689788449,9.44333621,34566.0,34565.0,0.75472942]
[1625689788601,9.44333621,34566.0,34565.0,0.74982636]
[1625689791753,9.44333621,34566.0,34565.0,0.24057544]
[1625689792354,9.44333621,34566.0,34565.0,0.74950568]
[1625689793486,9.20276077,34566.0,34565.0,0.50893024]
[1625689793935,9.44333621,34566.0,34565.0,0.74950568]
[1625689794687,10.9742205,34566.0,34565.0,1.4285232]
[1625689798739,10.9742205,34566.0,34565.0,2.44766967]
[1625689800931,10.92690586,34566.0,34565.0,2.44766967]
[1625689801218,10.97421429,34566.0,34565.0,2.44766967]
[1625689802197,10.97421429,34566.0,34565.0,1.4285232]
[1625689802797,10.97421429,34566.0,34565.0,1.18794776]
[1625689802947,10.97421429,34566.0,34565.0,0.50893024]
[1625689803097,11.47421429,34566.0,34565.0,0.50893024]
[1625689803251,12.47421429,34566.0,34564.0,0.51056612]
[1625689803408,12.47421429,34566.0,34562.0,1.02213224]
[1625689803409,4.59206349,34565.0,34562.0,0.39453224]
[1625689803549,0.5,34564.0,34560.0,0.51067187]
[1625689803700,5.78109918,34563.0,34557.0,0.002]
[1625689803848,0.5,34562.0,34557.0,0.002]
[1625689804006,4.0799598,34558.0,34557.0,0.002]
[1625689804149,5.51458612,34558.0,34557.0,0.002]
[1625689804304,8.21369276,34558.0,34557.0,0.002]
[1625689804451,8.26100957,34558.0,34557.0,0.002]
[1625689805501,8.26100957,34558.0,34549.0,0.08]
[1625689805799,5.76177486,34553.0,34549.0,0.08]
[1625689805950,6.26177486,34553.0,34549.0,0.08]
[1625689806098,6.74292574,34553.0,34549.0,0.08]
[1625689806248,6.75613774,34553.0,34549.0,0.08]
[1625689806401,7.75613774,34553.0,34542.0,1.19576362]
[1625689806559,7.75613774,34553.0,34542.0,0.005]
[1625689806700,2.54037639,34543.0,34542.0,0.005]
[1625689806850,2.80521639,34543.0,34542.0,0.005]
[1625689807304,2.80521639,34543.0,34540.0,1.19083969]
[1625689807463,5.1446,34540.0,34539.0,1.18936991]
[1625689808049,5.86632632,34540.0,34539.0,1.18936991]
[1625689808883,5.86632632,34540.0,34538.0,1.19335679]
[1625689809024,11.27282632,34540.0,34538.0,1.19335679]
[1625689809400,11.04982632,34540.0,34538.0,1.19335679]
[1625689809702,11.04982632,34540.0,34538.0,0.004]
[1625689811054,10.82682632,34540.0,34538.0,0.004]
[1625689811955,4.5573,34539.0,34538.0,0.004]
[1625689813981,4.4403,34539.0,34538.0,0.004]
[1625689815407,4.3343,34539.0,34538.0,0.004]
[1625689816318,4.3343,34539.0,34534.0,0.001]
[1625689816911,4.9581,34535.0,34534.0,0.001]
[1625689817057,5.16724,34535.0,34534.0,0.001]
[1625689818263,5.40781544,34535.0,34534.0,0.001]
[1625689819762,5.18481544,34535.0,34534.0,0.001]
[1625689820976,10.16171544,34535.0,34534.0,0.001]
[1625689821429,9.93871544,34535.0,34534.0,0.001]
[1625689822846,9.73771544,34535.0,34534.0,0.001]
[1625689825252,9.73771544,34535.0,34532.0,0.24057544]
[1625689826379,0.24057544,34534.0,34532.0,0.24057544]
[1625689829607,0.24057544,34534.0,34533.0,0.00491637]
[1625689831638,4.73247544,34534.0,34533.0,0.00491637]
[1625689833061,4.74569757,34534.0,34533.0,0.00491637]
[1625689847926,10.12699757,34534.0,34533.0,0.00491637]
[1625689853405,10.12699757,34534.0,34532.0,0.24057544]
[1625689853931,0.01322136,34533.0,34532.0,0.24057544]
[1625689854531,0.01322136,34533.0,34530.0,0.001]
[1625689854910,4.1708,34531.0,34530.0,0.001]
[1625689855206,4.18402165,34531.0,34530.0,0.001]
[1625689855357,4.18402165,34531.0,34530.0,0.00591212]
[1625689855510,4.18402165,34531.0,34530.0,0.001]
[1625689855807,4.18402165,34531.0,34530.0,0.00591212]
[1625689856108,4.18402165,34531.0,34530.0,0.001]
[1625689856408,4.18402165,34531.0,34530.0,0.00591216]
[1625689856566,4.42459709,34531.0,34530.0,0.00591216]
[1625689860840,4.42459709,34531.0,34530.0,1.02398657]
[1625689861591,5.43616066,34531.0,34530.0,1.02398657]
[1625689863619,5.43616066,34531.0,34530.0,2.89564043]
[1625689863620,7.29359037,34531.0,34530.0,2.89564043]
[1625689865571,7.29359037,34531.0,34530.0,4.25727233]
[1625689866775,8.64555021,34531.0,34530.0,2.89564043]
[1625689867378,8.64555021,34531.0,34530.0,2.89464043]
[1625689870000,8.64555021,34531.0,34530.0,2.88972827]
[1625689870311,8.64555021,34531.0,34530.0,2.89464051]
[1625689887642,4.42459709,34531.0,34530.0,0.00491224]
[1625689887943,8.64285997,34531.0,34530.0,2.89948337]
[1625689888092,8.64285997,34531.0,34530.0,2.89457113]
[1625689888468,8.64285997,34531.0,34530.0,2.89948267]
[1625689889896,4.92459709,34531.0,34526.0,0.001]
[1625689890051,10.67807637,34531.0,34529.0,0.68125667]
[1625689890195,11.68938951,34531.0,34529.0,0.68125667]
[1625689890345,5.77294625,34530.0,34527.0,0.34064582]
[1625689890511,0.5,34529.0,34526.0,0.001]
[1625689890644,7.40057257,34528.0,34526.0,0.001]
[1625689890795,7.36803106,34527.0,34526.0,0.001]
[1625689890944,8.36803106,34527.0,34526.0,0.001]
[1625689891097,8.41540997,34527.0,34521.0,0.002]
[1625689891396,4.6974282,34522.0,34521.0,0.002]
[1625689891546,6.5249182,34522.0,34521.0,0.002]
[1625689891847,6.53815959,34522.0,34521.0,0.002]
[1625689892298,8.21540839,34522.0,34521.0,0.002]
[1625689892539,6.03815959,34522.0,34521.0,0.002]
[1625689892674,6.53815959,34522.0,34521.0,0.002]
[1625689892830,7.01931047,34522.0,34521.0,0.002]
[1625689893126,8.69625191,34522.0,34521.0,0.002]
[1625689893427,7.01931047,34522.0,34521.0,0.002]
[1625689893574,7.52205971,34522.0,34521.0,0.002]
[1625689893804,6.52205971,34522.0,34521.0,0.002]
[1625689893951,7.02205971,34522.0,34521.0,0.002]
[1625689894102,6.02205971,34522.0,34521.0,0.002]
[1625689894252,5.69456971,34522.0,34521.0,0.002]
[1625689897256,5.69456971,34522.0,34519.0,4.5486]
[1625689897556,3.68400327,34520.0,34519.0,4.5486]
[1625689898533,2.34444182,34520.0,34519.0,4.5486]
[1625689898833,2.34444182,34520.0,34519.0,4.78917544]
[1625689900036,2.34444182,34520.0,34519.0,0.24057544]
[1625689900186,3.681436,34520.0,34518.0,0.24057544]
[1625689900336,3.67430833,34519.0,34518.0,0.24057544]
[1625689903191,2.33827211,34519.0,34518.0,0.24057544]
[1625689903800,3.67277347,34519.0,34518.0,0.24057544]
[1625689907846,3.67277347,34519.0,34517.0,0.34]
[1625689908147,3.66674181,34518.0,34517.0,0.34]
[1625689908900,3.90731725,34518.0,34517.0,0.34]
[1625689911980,3.92054493,34518.0,34517.0,0.34]
[1625689912281,3.90731725,34518.0,34517.0,0.34]
[1625689912735,3.92055337,34518.0,34517.0,0.34]
[1625689913032,5.41756257,34518.0,34517.0,0.34]
[1625689915068,6.41756257,34518.0,34517.0,0.34]
[1625689916786,5.41756257,34518.0,34517.0,0.34]
[1625689916934,3.92055337,34518.0,34517.0,0.34]
[1625689917385,5.41510856,34518.0,34517.0,0.34]
[1625689917985,3.92055337,34518.0,34517.0,0.34]
[1625689919111,5.41508434,34518.0,34517.0,0.34]
[1625689919261,3.92055337,34518.0,34517.0,0.34]
[1625689919711,5.41497512,34518.0,34517.0,0.34]
[1625689919862,5.44911899,34518.0,34517.0,0.34]
[1625689920536,4.95116517,34518.0,34517.0,0.34]
[1625689920988,6.44499814,34518.0,34517.0,0.34]
[1625689921138,7.44499814,34518.0,34517.0,0.34]
[1625689921439,6.44499814,34518.0,34517.0,0.34]
[1625689922641,7.44499814,34518.0,34517.0,0.34]
[1625689923614,6.44499814,34518.0,34517.0,0.34]
[1625689926323,7.44499814,34518.0,34517.0,0.34]
[1625689927903,6.44499814,34518.0,34517.0,0.34]
[1625689928050,7.44499814,34518.0,34517.0,0.34]
[1625689928801,6.44499814,34518.0,34517.0,0.34]
[1625689928951,7.44499814,34518.0,34517.0,0.34]
[1625689929553,6.44499814,34518.0,34517.0,0.34]
[1625689930831,4.95116517,34518.0,34517.0,0.34]
[1625689935108,6.43989815,34518.0,34517.0,0.34]
[1625689935407,4.95116517,34518.0,34517.0,0.34]
[1625689939016,6.44064837,34518.0,34517.0,0.34]
[1625689939167,4.95116517,34518.0,34517.0,0.34]
[1625689939391,6.44121514,34518.0,34517.0,0.34]
[1625689941796,6.71194514,34518.0,34517.0,0.34]
[1625689944425,6.4713697,34518.0,34514.0,4.3406]
[1625689944725,4.64288212,34515.0,34514.0,4.3406]
[1625689944876,9.48998212,34515.0,34514.0,4.3406]
[1625689945029,10.01852404,34515.0,34514.0,4.3406]
[1625689945183,9.67852404,34515.0,34514.0,4.3406]
[1625689946304,11.17156008,34515.0,34514.0,4.3406]
[1625689948404,11.48220008,34515.0,34514.0,4.3406]
[1625689949908,11.48220008,34515.0,34514.0,0.001]
[1625689952309,11.48220008,34515.0,34511.0,0.24057544]
[1625689952310,13.14147586,34515.0,34511.0,0.24057544]
[1625689952610,5.64163253,34512.0,34511.0,0.24057544]
[1625689952912,5.68902931,34512.0,34511.0,0.24057544]
[1625689953211,5.68902931,34512.0,34509.0,0.002]
[1625689953516,5.64032284,34510.0,34509.0,0.002]